[Event "CZE-ch U16 2020"]
[Site "Kouty nad Desnou"]
[Date "2020.03.09"]
[Round "3.2"]
[White "Vojta, Jakub"]
[Black "Neumann, Filip"]
[Result "1-0"]
[ECO "B39"]
[WhiteElo "2214"]
[BlackElo "2084"]
[Annotator "ChessBase"]
[PlyCount "111"]
[EventDate "2020.03.07"]
[EventCountry "CZE"]
[SourceTitle "playchess.com"]
[Source "ChessBase"]
[SourceQuality "1"]
[TimeControl "5400+30"]

1. Nf3 {[%emt 0:00:00]} g6 {[%emt 0:00:10]} 2. e4 {[%emt 0:00:00]} c5 {[%emt 0:01:05]} 3. c4 {[%emt 0:00:00]} Bg7 {[%emt 0:00:16]} 4. d4 {[%emt 0:00:00]} cxd4 {[%emt 0:00:05]} 5. Nxd4 {[%emt 0:00:00]} Nc6 {[%emt 0:00:07]} 6. Be3 {[%emt 0:00:05]} Nf6 {[%emt 0:00:10]} 7. Nc3 {[%emt 0:00:12]} Ng4 {[%emt 0:01:06]} 8. Qxg4 {[%emt 0:00:02]} Nxd4 {[%emt 0:00:08]} 9. Qd1 {[%emt 0:00:03]} e5 {[%emt 0:00:08]} 10. Bd3 {[%emt 0:03:26]} O-O {[%emt 0:00:47]} 11. O-O {[%emt 0:00:33]} d6 {[%emt 0:03:03]} 12. Qd2 {[%emt 0:06:05]} Be6 {[%emt 0:13:04]} 13. Rac1 {[%emt 0:02:09]} Qa5 {[%emt 0:08:11]} 14. Rfd1 {[%emt 0:05:52]} Rfc8 {[%emt 0:03:51]} 15. b3 {[%emt 0:01:16]} a6 {[%emt 0:05:23]} 16. Bf1 {[%emt 0:14:19]} b5 {[%emt 0:05:13]} 17. cxb5 {[%emt 0:02:30]} axb5 {[%emt 0:00:06]} 18. Bxd4 {[%emt 0:01:17]} exd4 {[%emt 0:00:03]} 19. Nxb5 {[%emt 0:01:49]} Rxc1 {[%emt 0:00:44]} 20. Qxc1 {[%emt 0:01:02]} Qxa2 {[%emt 0:00:37]} 21. Nxd4 {[%emt 0:01:42]} Bxd4 {[%emt 0:10:48]} 22. Rxd4 {[%emt 0:00:15]} Qa1 {[%emt 0:02:05]} 23. Qxa1 {[%emt 0:08:08]} Rxa1 {[%emt 0:00:04]} 24. Rxd6 {[%emt 0:08:23]} Bxb3 {[%emt 0:00:31]} 25. Rd4 {[%emt 0:00:28]} Bd1 {[%emt 0:00:37]} 26. Rd2 {[%emt 0:00:11]} Bb3 {[%emt 0:00:31]} 27. f3 {[%emt 0:00:41]} Bc4 {[%emt 0:00:05]} 28. Rf2 {[%emt 0:00:03]} h5 {[%emt 0:00:19]} 29. g3 {[%emt 0:01:32]} Kg7 {[%emt 0:00:56]} 30. Kg2 {[%emt 0:00:05]} Bxf1+ {[%emt 0:00:04]} 31. Rxf1 {[%emt 0:00:04]} Ra2+ {[%emt 0:00:09]} 32. Rf2 {[%emt 0:00:06]} Ra5 {[%emt 0:00:17]} 33. Rb2 {[%emt 0:00:59]} Ra7 {[%emt 0:01:31]} 34. f4 {[%emt 0:02:40]} Ra4 {[%emt 0:00:26]} 35. Re2 {[%emt 0:00:31]} Ra5 {[%emt 0:01:01]} 36. Kh3 {[%emt 0:00:43]} Rb5 {[%emt 0:00:57]} 37. e5 {[%emt 0:01:21]} Rb7 {[%emt 0:00:58]} 38. Kh4 {[%emt 0:00:15]} Kh6 {[%emt 0:01:31]} 39. Rd2 {[%emt 0:02:32]} Ra7 {[%emt 0:04:46]} 40. Rd6 {[%emt 0:01:07]} Re7 {[%emt 0:01:36]} 41. Rf6 {[%emt 0:00:32]} Kg7 {[%emt 0:00:27]} 42. Kg5 {[%emt 0:00:54]} Re8 {[%emt 0:00:39]} 43. h3 {[%emt 0:01:45]} Re7 {[%emt 0:00:36]} 44. Rd6 {[%emt 0:12:50]} Ra7 {[%emt 0:10:36]} 45. g4 {[%emt 0:04:39]} hxg4 {[%emt 0:00:46]} 46. hxg4 {[%emt 0:00:08]} Ra5 {[%emt 0:05:07]} 47. Rd7 {[%emt 0:00:41]} Rb5 {[%emt 0:01:36]} 48. Re7 {[%emt 0:00:20]} Rb6 {[%emt 0:09:56]} 49. f5 {[%emt 0:01:48]} gxf5 {[%emt 0:01:27]} 50. gxf5 {[%emt 0:00:10]} Kf8 {[%emt 0:00:58]} 51. Ra7 {[%emt 0:00:15]} Kg8 {[%emt 0:03:53]} 52. Rc7 {[%emt 0:02:35]} f6+ {[%emt 0:03:37]} 53. Kg6 {[%emt 0:00:18]} fxe5+ {[%emt 0:00:38]} 54. f6 {[%emt 0:00:05]} Rb8 {[%emt 0:00:12]} 55. Rg7+ {[%emt 0:00:09]} Kf8 {[%emt 0:00:41]} 56. Rh7 {[%emt 0:00:04]} 1-0

[Event "CZE-ch U16 2020"]
[Site "Kouty nad Desnou"]
[Date "2020.03.09"]
[Round "3.3"]
[White "Placer, Sebastian"]
[Black "Jun, Rudolf Jr."]
[Result "1-0"]
[ECO "E97"]
[WhiteElo "2189"]
[BlackElo "2104"]
[Annotator "ChessBase"]
[PlyCount "101"]
[EventDate "2020.03.07"]
[EventCountry "CZE"]
[SourceTitle "playchess.com"]
[Source "ChessBase"]
[SourceQuality "1"]
[TimeControl "5400+30"]

1. d4 {[%emt 0:00:00]} Nf6 {[%emt 0:00:00]} 2. c4 {[%emt 0:00:00]} g6 {[%emt 0:00:00]} 3. Nc3 {[%emt 0:00:18]} Bg7 {[%emt 0:00:13]} 4. e4 {[%emt 0:00:38]} d6 {[%emt 0:00:28]} 5. Nf3 {[%emt 0:00:31]} O-O {[%emt 0:00:57]} 6. Be2 {[%emt 0:00:36]} e5 {[%emt 0:01:38]} 7. O-O {[%emt 0:00:37]} Nc6 {[%emt 0:01:03]} 8. d5 {[%emt 0:01:06]} Ne7 {[%emt 0:00:25]} 9. b4 {[%emt 0:00:56]} Ne8 {[%emt 0:16:06]} 10. c5 {[%emt 0:01:04]} h6 {[%emt 0:04:45]} 11. Nd2 {[%emt 0:02:14]} f5 {[%emt 0:03:15]} 12. a4 {[%emt 0:03:53]} Nf6 {[%emt 0:02:57]} 13. Qb3 {[%emt 0:05:46]} Kh7 {[%emt 0:09:04]} 14. cxd6 {[%emt 0:11:52]} cxd6 {[%emt 0:00:25]} 15. Ba3 {[%emt 0:00:41]} f4 {[%emt 0:04:41]} 16. b5 {[%emt 0:04:32]} Ne8 {[%emt 0:06:50]} 17. Rac1 {[%emt 0:04:48]} g5 {[%emt 0:03:07]} 18. Qd1 {[%emt 0:05:40]} Ng6 {[%emt 0:10:44]} 19. Bg4 {[%emt 0:04:51]} Bxg4 {[%emt 0:01:36]} 20. Qxg4 {[%emt 0:00:07]} f3 {[%emt 0:01:12]} 21. Nxf3 {[%emt 0:14:36]} Rf4 {[%emt 0:02:18]} 22. Qg3 {[%emt 0:04:51]} Nf6 {[%emt 0:12:54]} 23. Nd2 {[%emt 0:01:51]} Rg4 {[%emt 0:01:11]} 24. Qe3 {[%emt 0:01:53]} Rh4 {[%emt 0:01:01]} 25. Nf3 {[%emt 0:01:54]} Rh5 {[%emt 0:00:12]} 26. Ne2 {[%emt 0:07:31]} g4 {[%emt 0:01:19]} 27. Nd2 {[%emt 0:01:31]} Rg5 {[%emt 0:04:09]} 28. Nc4 {[%emt 0:02:04]} Ne8 {[%emt 0:00:47]} 29. Ng3 {[%emt 0:00:43]} Bf8 {[%emt 0:08:20]} 30. Bb4 {[%emt 0:02:07]} Qd7 {[%emt 0:01:53]} 31. Rc2 {[%emt 0:02:08]} Nf4 {[%emt 0:00:20]} 32. Nxe5 {[%emt 0:04:52]} dxe5 {[%emt 0:01:33]} 33. Bxf8 {[%emt 0:00:05]} Rc8 {[%emt 0:00:36]} 34. Rxc8 {[%emt 0:00:20]} Qxc8 {[%emt 0:00:04]} 35. Rc1 {[%emt 0:00:24]} Qd7 {[%emt 0:00:23]} 36. Qxa7 {[%emt 0:01:01]} h5 {[%emt 0:00:17]} 37. Qe3 {[%emt 0:01:46]} Qf7 {[%emt 0:01:15]} 38. Bb4 {[%emt 0:01:14]} Qg6 {[%emt 0:00:29]} 39. Be7 {[%emt 0:00:55]} Nf6 {[%emt 0:00:32]} 40. Rc7 {[%emt 0:02:05]} Kg8 {[%emt 0:00:29]} 41. Bxf6 {[%emt 0:02:05]} Qxf6 {[%emt 0:00:16]} 42. Qa7 {[%emt 0:01:38]} Rg7 {[%emt 0:00:35]} 43. Qxb7 {[%emt 0:00:47]} Rxc7 {[%emt 0:00:33]} 44. Qxc7 {[%emt 0:00:01]} Nd3 {[%emt 0:00:00]} 45. Qc8+ {[%emt 0:00:00]} Kf7 {[%emt 0:00:00]} 46. Qf5 {[%emt 0:00:00]} Qxf5 47. Nxf5 Nc5 {[%emt 0:00:00]} 48. a5 {[%emt 0:00:00]} Nxe4 {[%emt 0:00:00]} 49. a6 {[%emt 0:00:00]} Nc3 {[%emt 0:00:00]} 50. a7 {[%emt 0:00:00]} Nxd5 {[%emt 0:00:00]} 51. a8=Q {[%emt 0:00:00]} 1-0

[Event "CZE-ch U16 2020"]
[Site "Kouty nad Desnou"]
[Date "2020.03.09"]
[Round "3.5"]
[White "Vantuch, Lucian"]
[Black "Gnojek, Petr"]
[Result "0-1"]
[ECO "B00"]
[WhiteElo "1891"]
[BlackElo "2129"]
[Annotator "ChessBase"]
[PlyCount "92"]
[EventDate "2020.03.07"]
[EventCountry "CZE"]
[SourceTitle "playchess.com"]
[Source "ChessBase"]
[SourceQuality "1"]
[TimeControl "5400+30"]

1. e4 {[%emt 0:00:00]} d6 {[%emt 0:00:00]} 2. d4 {[%emt 0:00:00]} Nf6 {[%emt 0:00:00]} 3. f3 {[%emt 0:00:00]} c5 {[%emt 0:00:00]} 4. Bb5+ {[%emt 0:08:00]} Bd7 {[%emt 0:01:11]} 5. Bxd7+ {[%emt 0:00:23]} Nbxd7 {[%emt 0:00:06]} 6. Ne2 {[%emt 0:01:11]} cxd4 {[%emt 0:06:06]} 7. Nxd4 {[%emt 0:01:00]} Rc8 {[%emt 0:00:18]} 8. O-O {[%emt 0:05:39]} e6 {[%emt 0:02:14]} 9. b3 {[%emt 0:05:27]} d5 {[%emt 0:07:02]} 10. exd5 {[%emt 0:00:20]} Nxd5 {[%emt 0:00:04]} 11. c4 {[%emt 0:00:08]} N5f6 {[%emt 0:00:03]} 12. Kh1 {[%emt 0:02:14]} Bc5 {[%emt 0:05:17]} 13. Nc3 {[%emt 0:05:23]} Ne5 {[%emt 0:08:36]} 14. Nce2 {[%emt 0:08:24]} O-O {[%emt 0:01:16]} 15. Bb2 {[%emt 0:01:49]} Nc6 {[%emt 0:10:49]} 16. Nxc6 {[%emt 0:03:58]} Rxc6 {[%emt 0:00:07]} 17. Qc2 {[%emt 0:14:50]} Qe7 {[%emt 0:02:49]} 18. Rad1 {[%emt 0:01:45]} Rd8 {[%emt 0:02:11]} 19. Ng3 {[%emt 0:03:25]} Rxd1 {[%emt 0:00:33]} 20. Rxd1 {[%emt 0:00:06]} Rd6 {[%emt 0:02:19]} 21. Bxf6 {[%emt 0:02:50]} Qxf6 {[%emt 0:00:25]} 22. Ne4 {[%emt 0:00:50]} Qb2 {[%emt 0:01:28]} 23. Qb1 Rxd1+ {[%emt 0:00:44]} 24. Qxd1 {[%emt 0:04:04]} Bf8 {[%emt 0:05:21]} 25. a4 {[%emt 0:01:23]} h6 {[%emt 0:02:49]} 26. h3 {[%emt 0:00:45]} Qe5 {[%emt 0:02:40]} 27. Qd2 {[%emt 0:06:56]} f5 {[%emt 0:02:26]} 28. Qc3 {[%emt 0:02:16]} Qxc3 {[%emt 0:06:11]} 29. Nxc3 {[%emt 0:00:07]} Kf7 {[%emt 0:00:03]} 30. Kg1 {[%emt 0:04:01]} Ke7 {[%emt 0:02:07]} 31. Kf1 {[%emt 0:01:02]} Kd7 {[%emt 0:00:50]} 32. Ke2 {[%emt 0:00:51]} Kc6 {[%emt 0:00:33]} 33. Kd3 {[%emt 0:01:49]} a6 {[%emt 0:08:00]} 34. Ne2 {[%emt 0:00:57]} Bc5 {[%emt 0:00:21]} 35. Kc3 {[%emt 0:10:55]} a5 {[%emt 0:00:21]} 36. Nd4+ {[%emt 0:00:28]} Kd6 {[%emt 0:06:13]} 37. Kd3 {[%emt 0:00:07]} Bxd4 {[%emt 0:00:36]} 38. Kxd4 {[%emt 0:00:11]} e5+ {[%emt 0:00:04]} 39. Kd3 {[%emt 0:01:26]} Kc5 {[%emt 0:00:15]} 40. g4 {[%emt 0:00:09]} g6 {[%emt 0:00:06]} 41. h4 {[%emt 0:00:15]} h5 {[%emt 0:00:05]} 42. g5 {[%emt 0:00:51]} Kb4 {[%emt 0:00:21]} 43. Kc2 {[%emt 0:00:05]} b6 {[%emt 0:01:03]} 44. Kb2 {[%emt 0:00:03]} e4 {[%emt 0:00:12]} 45. fxe4 {[%emt 0:00:08]} fxe4 {[%emt 0:00:03]} 46. Kc2 {[%emt 0:00:06]} e3 {[%emt 0:00:04]} 0-1

[Event "CZE-ch U16 2020"]
[Site "Kouty nad Desnou"]
[Date "2020.03.09"]
[Round "3.6"]
[White "Mach, Petr"]
[Black "Janouch, Jachym Stepan"]
[Result "1-0"]
[ECO "D30"]
[WhiteElo "2045"]
[BlackElo "1888"]
[Annotator "ChessBase"]
[PlyCount "71"]
[EventDate "2020.03.07"]
[EventCountry "CZE"]
[SourceTitle "playchess.com"]
[Source "ChessBase"]
[SourceQuality "1"]
[TimeControl "5400+30"]

1. d4 {[%emt 0:00:00]} d5 {[%emt 0:00:57]} 2. c4 {[%emt 0:00:00]} e6 {[%emt 0:00:45]} 3. Nf3 {[%emt 0:00:00]} a6 {[%emt 0:00:22]} 4. Bg5 {[%emt 0:00:37]} Be7 {[%emt 0:00:43]} 5. Bxe7 {[%emt 0:00:19]} Nxe7 {[%emt 0:00:28]} 6. e3 {[%emt 0:04:19]} O-O {[%emt 0:00:24]} 7. Nbd2 {[%emt 0:00:39]} Nd7 {[%emt 0:02:17]} 8. Bd3 {[%emt 0:00:56]} Nf6 {[%emt 0:11:33]} 9. O-O {[%emt 0:01:53]} dxc4 {[%emt 0:03:12]} 10. Nxc4 {[%emt 0:01:03]} b6 {[%emt 0:01:35]} 11. Rc1 {[%emt 0:07:18]} Bb7 {[%emt 0:00:38]} 12. Nce5 {[%emt 0:05:24]} Rc8 {[%emt 0:05:41]} 13. Qe2 {[%emt 0:01:28]} b5 {[%emt 0:02:20]} 14. a4 {[%emt 0:07:22]} c6 {[%emt 0:02:05]} 15. Nd2 {[%emt 0:20:48]} Nd7 {[%emt 0:12:47]} 16. Nxd7 {[%emt 0:00:35]} Qxd7 {[%emt 0:00:11]} 17. Nb3 {[%emt 0:00:18]} Nd5 {[%emt 0:05:03]} 18. Nc5 {[%emt 0:01:21]} Qe7 {[%emt 0:00:45]} 19. Be4 {[%emt 0:04:36]} Rfd8 {[%emt 0:04:33]} 20. Bxd5 {[%emt 0:07:57]} exd5 {[%emt 0:00:45]} 21. axb5 {[%emt 0:00:28]} axb5 {[%emt 0:01:32]} 22. b4 {[%emt 0:02:11]} Rd6 {[%emt 0:09:13]} 23. Ra1 {[%emt 0:01:27]} h6 {[%emt 0:01:10]} 24. Ra7 {[%emt 0:01:44]} Rc7 {[%emt 0:00:11]} 25. Rfa1 {[%emt 0:00:50]} Kh7 {[%emt 0:03:05]} 26. Qc2+ {[%emt 0:02:23]} Rg6 {[%emt 0:00:08]} 27. h4 {[%emt 0:05:22]} h5 {[%emt 0:02:34]} 28. Qf5 {[%emt 0:03:52]} Bc8 {[%emt 0:01:54]} 29. Rxc7 {[%emt 0:00:21]} Qxc7 {[%emt 0:00:27]} 30. Qxh5+ {[%emt 0:01:43]} Rh6 {[%emt 0:00:32]} 31. Qg5 {[%emt 0:02:44]} f6 {[%emt 0:04:41]} 32. Qg3 {[%emt 0:01:07]} Qf7 {[%emt 0:06:48]} 33. Ra8 {[%emt 0:02:50]} Bf5 {[%emt 0:03:22]} 34. Qb8 {[%emt 0:02:05]} Kg6 {[%emt 0:02:21]} 35. Ra7 {[%emt 0:01:49]} Rh8 {[%emt 0:00:59]} 36. Qg3+ {[%emt 0:00:06]} 1-0

[Event "CZE-ch U16 2020"]
[Site "Kouty nad Desnou"]
[Date "2020.03.09"]
[Round "3.7"]
[White "Vecera, Dominik"]
[Black "Hosnedl, Matyas"]
[Result "1/2-1/2"]
[ECO "C03"]
[WhiteElo "1814"]
[BlackElo "1977"]
[Annotator "ChessBase"]
[PlyCount "67"]
[EventDate "2020.03.07"]
[EventCountry "CZE"]
[SourceTitle "playchess.com"]
[Source "ChessBase"]
[SourceQuality "1"]
[TimeControl "5400+30"]

1. e4 {[%emt 0:00:00]} e6 {[%emt 0:00:00]} 2. d4 {[%emt 0:00:00]} d5 {[%emt 0:00:00]} 3. Nd2 {[%emt 0:00:00]} a6 {[%emt 0:00:11]} 4. Bd3 {[%emt 0:03:34]} c5 {[%emt 0:00:22]} 5. c3 {[%emt 0:06:05]} cxd4 {[%emt 0:00:17]} 6. cxd4 {[%emt 0:00:05]} dxe4 {[%emt 0:00:10]} 7. Nxe4 {[%emt 0:00:16]} Bb4+ {[%emt 0:00:07]} 8. Nc3 {[%emt 0:04:10]} Nc6 {[%emt 0:01:19]} 9. Nf3 {[%emt 0:02:52]} Nf6 {[%emt 0:04:26]} 10. O-O {[%emt 0:03:58]} h6 {[%emt 0:00:51]} 11. Bf4 {[%emt 0:13:26]} O-O {[%emt 0:02:04]} 12. Rc1 {[%emt 0:02:27]} Bd6 {[%emt 0:07:32]} 13. Be5 {[%emt 0:10:48]} Nb4 {[%emt 0:07:59]} 14. Bb1 {[%emt 0:02:40]} Bxe5 {[%emt 0:10:27]} 15. dxe5 {[%emt 0:05:43]} Qxd1 {[%emt 0:06:15]} 16. Rfxd1 {[%emt 0:00:34]} Nd7 {[%emt 0:10:58]} 17. Be4 {[%emt 0:10:42]} f5 {[%emt 0:04:36]} 18. Bxb7 {[%emt 0:05:33]} Bxb7 {[%emt 0:03:16]} 19. Rxd7 {[%emt 0:00:01]} Bxf3 {[%emt 0:05:15]} 20. gxf3 {[%emt 0:00:02]} Rfd8 21. Rcd1 {[%emt 0:03:08]} Nc6 {[%emt 0:08:42]} 22. f4 {[%emt 0:04:17]} g5 {[%emt 0:05:39]} 23. R7d6 {[%emt 0:01:50]} Rxd6 {[%emt 0:02:28]} 24. Rxd6 {[%emt 0:00:16]} Nd8 {[%emt 0:00:48]} 25. fxg5 {[%emt 0:02:36]} hxg5 {[%emt 0:00:05]} 26. Na4 {[%emt 0:01:55]} Kf7 {[%emt 0:03:02]} 27. Nc5 {[%emt 0:01:53]} a5 {[%emt 0:01:00]} 28. Rd7+ {[%emt 0:03:46]} Ke8 {[%emt 0:03:32]} 29. Rg7 {[%emt 0:03:11]} Rc8 {[%emt 0:01:38]} 30. Nd7 {[%emt 0:04:35]} Nf7 {[%emt 0:04:22]} 31. Nf6+ {[%emt 0:00:53]} Ke7 {[%emt 0:00:33]} 32. Nh7 {[%emt 0:01:00]} Rc4 {[%emt 0:00:08]} 33. h3 {[%emt 0:00:57]} Ke8 {[%emt 0:00:39]} 34. Nf6+ {[%emt 0:00:32]} 1/2-1/2

[Event "CZE-ch U16 2020"]
[Site "Kouty nad Desnou"]
[Date "2020.03.09"]
[Round "3.10"]
[White "Blaha, Marek"]
[Black "Krizek, Krystof"]
[Result "1/2-1/2"]
[ECO "C91"]
[WhiteElo "1836"]
[BlackElo "1947"]
[Annotator "ChessBase"]
[PlyCount "92"]
[EventDate "2020.03.07"]
[EventCountry "CZE"]
[SourceTitle "playchess.com"]
[Source "ChessBase"]
[SourceQuality "1"]
[TimeControl "5400+30"]

1. e4 {[%emt 0:00:00]} e5 {[%emt 0:00:00]} 2. Nf3 {[%emt 0:00:00]} Nc6 {[%emt 0:00:00]} 3. Bb5 {[%emt 0:00:00]} a6 {[%emt 0:02:14]} 4. Ba4 {[%emt 0:00:00]} Nf6 {[%emt 0:00:12]} 5. O-O {[%emt 0:00:00]} Be7 {[%emt 0:01:56]} 6. Re1 {[%emt 0:00:00]} b5 {[%emt 0:00:13]} 7. Bb3 {[%emt 0:00:08]} O-O {[%emt 0:00:28]} 8. c3 {[%emt 0:00:07]} d6 {[%emt 0:00:35]} 9. d4 {[%emt 0:00:04]} Bg4 {[%emt 0:01:04]} 10. a4 {[%emt 0:00:14]} Re8 {[%emt 0:11:59]} 11. d5 {[%emt 0:00:33]} Na5 {[%emt 0:02:08]} 12. Bc2 {[%emt 0:00:07]} c5 {[%emt 0:01:04]} 13. dxc6 {[%emt 0:08:04]} Qc7 {[%emt 0:15:27]} 14. Qe2 {[%emt 0:34:58]} Qxc6 {[%emt 0:03:12]} 15. axb5 {[%emt 0:02:22]} axb5 {[%emt 0:00:10]} 16. Bd3 {[%emt 0:03:45]} Bd7 {[%emt 0:05:02]} 17. Bg5 {[%emt 0:17:50]} h6 {[%emt 0:01:48]} 18. Bxf6 {[%emt 0:01:40]} Bxf6 {[%emt 0:00:10]} 19. Na3 {[%emt 0:00:27]} Nc4 {[%emt 0:23:51]} 20. Nxc4 {[%emt 0:01:17]} bxc4 {[%emt 0:00:02]} 21. Bxc4 {[%emt 0:00:00]} Qb6 {[%emt 0:00:23]} 22. b4 {[%emt 0:03:43]} Rec8 {[%emt 0:03:24]} 23. Rxa8 {[%emt 0:03:47]} Rxa8 {[%emt 0:00:01]} 24. Rb1 {[%emt 0:00:52]} Rc8 {[%emt 0:01:57]} 25. Rc1 {[%emt 0:05:25]} Be6 {[%emt 0:01:53]} 26. Bb5 {[%emt 0:08:14]} d5 {[%emt 0:01:28]} 27. exd5 {[%emt 0:00:43]} Bxd5 {[%emt 0:00:09]} 28. c4 {[%emt 0:00:50]} e4 {[%emt 0:02:06]} 29. Nd2 {[%emt 0:01:38]} Qxb5 {[%emt 0:00:35]} 30. Qf1 {[%emt 0:06:14]} Qc6 {[%emt 0:00:24]} 31. b5 {[%emt 0:00:37]} Qc5 {[%emt 0:12:34]} 32. Nb3 {[%emt 0:00:28]} Bxc4 {[%emt 0:02:14]} 33. Nxc5 {[%emt 0:00:04]} Bxf1 {[%emt 0:00:04]} 34. Kxf1 {[%emt 0:00:03]} Bg5 {[%emt 0:00:49]} 35. Rc3 {[%emt 0:02:44]} Bd2 {[%emt 0:00:20]} 36. Rc2 {[%emt 0:00:03]} Bb4 {[%emt 0:00:28]} 37. b6 {[%emt 0:00:00]} Bxc5 {[%emt 0:01:51]} 38. b7 {[%emt 0:00:09]} Rb8 {[%emt 0:00:04]} 39. Rxc5 {[%emt 0:00:03]} Rxb7 {[%emt 0:00:07]} 40. Ke2 {[%emt 0:00:12]} Re7 {[%emt 0:00:37]} 41. Ke3 {[%emt 0:00:04]} g6 {[%emt 0:00:05]} 42. g4 {[%emt 0:00:08]} Kg7 {[%emt 0:00:17]} 43. h4 {[%emt 0:00:24]} h5 {[%emt 0:01:37]} 44. gxh5 {[%emt 0:00:39]} f5 {[%emt 0:00:11]} 45. hxg6 {[%emt 0:00:12]} Kxg6 {[%emt 0:00:09]} 46. f3 {[%emt 0:00:15]} exf3+ {Ke4} 1/2-1/2

[Event "CZE-ch U16 2020"]
[Site "Kouty nad Desnou"]
[Date "2020.03.09"]
[Round "3.11"]
[White "Nezval, Filip"]
[Black "Kolar, Jan"]
[Result "1-0"]
[ECO "E91"]
[WhiteElo "1940"]
[BlackElo "1760"]
[Annotator "ChessBase"]
[PlyCount "81"]
[EventDate "2020.03.07"]
[EventCountry "CZE"]
[SourceTitle "playchess.com"]
[Source "ChessBase"]
[SourceQuality "1"]
[TimeControl "5400+30"]

1. d4 {[%emt 0:00:00]} Nf6 {[%emt 0:00:00]} 2. Nf3 {[%emt 0:00:00]} g6 {[%emt 0:00:01]} 3. c4 {[%emt 0:00:00]} Bg7 {[%emt 0:00:16]} 4. Nc3 {[%emt 0:00:00]} O-O {[%emt 0:00:41]} 5. e4 {[%emt 0:00:00]} d6 {[%emt 0:00:20]} 6. Be2 {[%emt 0:00:07]} Nc6 {[%emt 0:01:37]} 7. Bg5 {[%emt 0:04:21]} h6 {[%emt 0:06:57]} 8. Bh4 {[%emt 0:00:20]} e5 {[%emt 0:09:31]} 9. d5 {[%emt 0:00:16]} Ne7 {[%emt 0:07:10]} 10. O-O {[%emt 0:00:18]} g5 {[%emt 0:04:15]} 11. Bg3 {[%emt 0:00:15]} Ng6 {[%emt 0:01:29]} 12. Rc1 {[%emt 0:19:38]} Nh5 {[%emt 0:09:30]} 13. Nd2 {[%emt 0:04:36]} Nhf4 {[%emt 0:02:55]} 14. Bf3 {[%emt 0:01:30]} Nd3 {[%emt 0:06:24]} 15. Rc2 {[%emt 0:02:01]} f5 {[%emt 0:05:01]} 16. exf5 {[%emt 0:01:45]} Bxf5 {[%emt 0:00:47]} 17. Be4 {[%emt 0:00:39]} Qd7 {[%emt 0:04:34]} 18. Bxf5 {[%emt 0:06:06]} Qxf5 {[%emt 0:02:52]} 19. Nde4 {[%emt 0:01:03]} Nb4 {[%emt 0:03:56]} 20. Re2 {[%emt 0:01:51]} Nf4 {[%emt 0:02:14]} 21. Re3 {[%emt 0:00:47]} Qd7 {[%emt 0:07:59]} 22. a3 {[%emt 0:03:04]} Na6 {[%emt 0:01:09]} 23. b4 {[%emt 0:00:16]} b6 {[%emt 0:01:21]} 24. Qc2 {[%emt 0:08:07]} Nh5 {[%emt 0:06:15]} 25. Rb1 {[%emt 0:01:55]} Nxg3 {[%emt 0:00:33]} 26. hxg3 {[%emt 0:00:12]} Rf7 {[%emt 0:03:05]} 27. Qe2 {[%emt 0:00:38]} Rd8 {[%emt 0:02:18]} 28. c5 {[%emt 0:00:42]} Nb8 {[%emt 0:02:09]} 29. c6 {[%emt 0:00:07]} Qc8 {[%emt 0:01:39]} 30. g4 {[%emt 0:09:39]} Rdf8 {[%emt 0:02:30]} 31. Rh3 {[%emt 0:04:13]} Rf4 {[%emt 0:02:32]} 32. f3 {[%emt 0:00:13]} a6 33. Qd3 {[%emt 0:01:05]} Qd8 {[%emt 0:03:21]} 34. Ne2 {[%emt 0:01:16]} R4f7 {[%emt 0:00:36]} 35. Qc2 {[%emt 0:01:32]} Qe7 {[%emt 0:00:59]} 36. N2g3 {[%emt 0:00:19]} Qd8 {[%emt 0:00:30]} 37. Nf5 {[%emt 0:01:57]} Kh8 {[%emt 0:00:32]} 38. Nxh6 {[%emt 0:01:01]} Bxh6 {[%emt 0:00:05]} 39. Rxh6+ {[%emt 0:00:07]} Kg7 {[%emt 0:00:03]} 40. Rh5 {[%emt 0:00:09]} Rh8 {[%emt 0:01:22]} 41. Nxg5 {[%emt 0:01:42]} 1-0

[Event "CZE-ch U16 2020"]
[Site "Kouty nad Desnou"]
[Date "2020.03.09"]
[Round "4.1"]
[White "Frank, Adam"]
[Black "Vojta, Jakub"]
[Result "1/2-1/2"]
[ECO "B92"]
[WhiteElo "2196"]
[BlackElo "2214"]
[Annotator "ChessBase"]
[PlyCount "88"]
[EventDate "2020.03.07"]
[EventCountry "CZE"]
[SourceTitle "playchess.com"]
[Source "ChessBase"]
[SourceQuality "1"]
[TimeControl "5400+30"]

1. e4 {[%emt 0:00:00]} c5 {[%emt 0:00:00]} 2. Nf3 {[%emt 0:00:00]} d6 {[%emt 0:00:00]} 3. d4 {[%emt 0:00:00]} cxd4 {[%emt 0:00:00]} 4. Nxd4 {[%emt 0:00:00]} Nf6 {[%emt 0:00:00]} 5. Nc3 {[%emt 0:00:00]} a6 {[%emt 0:00:00]} 6. Be2 {[%emt 0:00:00]} e5 {[%emt 0:00:01]} 7. Nb3 {[%emt 0:00:00]} Be7 {[%emt 0:00:05]} 8. Be3 {[%emt 0:00:29]} O-O {[%emt 0:00:37]} 9. O-O {[%emt 0:08:18]} Qc7 {[%emt 0:00:52]} 10. Kh1 {[%emt 0:01:07]} b5 {[%emt 0:00:23]} 11. f3 {[%emt 0:01:09]} Be6 {[%emt 0:03:52]} 12. f4 {[%emt 0:03:24]} Nbd7 {[%emt 0:02:36]} 13. f5 {[%emt 0:04:16]} Bc4 {[%emt 0:00:37]} 14. Nd2 {[%emt 0:03:55]} Bxe2 {[%emt 0:01:25]} 15. Nxe2 {[%emt 0:00:45]} d5 {[%emt 0:01:59]} 16. c3 {[%emt 0:06:00]} Rfd8 {[%emt 0:04:54]} 17. Qe1 {[%emt 0:03:20]} Nxe4 {[%emt 0:06:16]} 18. Nxe4 {[%emt 0:00:11]} dxe4 {[%emt 0:00:04]} 19. Ng3 {[%emt 0:00:14]} Bh4 {[%emt 0:00:49]} 20. Bf2 {[%emt 0:05:29]} Bxg3 {[%emt 0:00:21]} 21. Bxg3 {[%emt 0:00:12]} Qc6 {[%emt 0:02:43]} 22. Rd1 {[%emt 0:06:20]} Nc5 {[%emt 0:08:59]} 23. Bxe5 {[%emt 0:05:59]} Rxd1 {[%emt 0:10:02]} 24. Qxd1 {[%emt 0:00:05]} Nd3 {[%emt 0:00:48]} 25. Bd4 {[%emt 0:01:45]} f6 {[%emt 0:04:25]} 26. Qe2 {[%emt 0:10:29]} Qd5 {[%emt 0:01:44]} 27. h3 {[%emt 0:01:20]} Re8 {[%emt 0:01:37]} 28. Rd1 {[%emt 0:02:48]} Rd8 {[%emt 0:00:58]} 29. Rf1 {[%emt 0:04:11]} b4 {[%emt 0:05:22]} 30. Qg4 {[%emt 0:06:40]} Kh8 {[%emt 0:00:34]} 31. h4 {[%emt 0:01:11]} bxc3 {[%emt 0:09:47]} 32. bxc3 {[%emt 0:00:57]} Re8 {[%emt 0:04:17]} 33. h5 {[%emt 0:03:55]} e3 {[%emt 0:02:56]} 34. h6 {[%emt 0:00:12]} Qf7 {[%emt 0:01:27]} 35. Qe2 {[%emt 0:05:12]} Nf2+ {[%emt 0:02:32]} 36. Kg1 {[%emt 0:00:17]} Qe7 {[%emt 0:10:28]} 37. Bxe3 {[%emt 0:03:03]} Ng4 {[%emt 0:02:53]} 38. Qxg4 {[%emt 0:00:24]} Qxe3+ {[%emt 0:00:05]} 39. Rf2 {[%emt 0:03:20]} Qxh6 {[%emt 0:02:05]} 40. Qd4 {[%emt 0:00:15]} Qg5 {[%emt 0:01:12]} 41. c4 {[%emt 0:02:01]} h5 {[%emt 0:04:39]} 42. Kh2 {[%emt 0:07:04]} Re3 {[%emt 0:02:55]} 43. Qf4 {[%emt 0:00:15]} Qxf4+ {[%emt 0:00:23]} 44. Rxf4 {[%emt 0:00:06]} Rc3 {[%emt 0:00:26]} 1/2-1/2